[Event "Torneo Nuevo Centro. Jornada 11"]
[Site "Chess.com"]
[Date "2020.08.28"]
[Round "6"]
[White "Cayon Pelaez, Pablo"]
[Black "Kovacevic, Slobodan"]
[Result "1-0"]
[WhiteElo "1798"]
[BlackElo "2224"]
[TimeControl "180+2"]
[EndTime "11:35:30 PDT"]
[Termination "Victoria de Ataquedefinitivo por abandono"]

1. d4 {[%clk 0:03:01.9]} 1... Nf6 {[%clk 0:02:53.2]} 2. c4 {[%clk 0:03:02.1]}
2... e6 {[%clk 0:02:52.6]} 3. Nc3 {[%clk 0:03:03.2]} 3... c5 {[%clk 0:02:52.2]}
4. d5 {[%clk 0:03:03.9]} 4... d6 {[%clk 0:02:51.3]} 5. e4 {[%clk 0:03:02.2]}
5... exd5 {[%clk 0:02:50.8]} 6. cxd5 {[%clk 0:03:04.1]} 6... g6 {[%clk
0:02:50.3]} 7. f4 {[%clk 0:03:04.6]} 7... Bg7 {[%clk 0:02:49.5]} 8. Nf3 {[%clk
0:03:05.5]} 8... O-O {[%clk 0:02:46]} 9. Bd3 {[%clk 0:03:05.6]} 9... Bg4 {[%clk
0:02:44.7]} 10. O-O {[%clk 0:03:06.2]} 10... Nbd7 {[%clk 0:02:43.8]} 11. h3
{[%clk 0:03:00.8]} 11... Bxf3 {[%clk 0:02:42.7]} 12. Qxf3 {[%clk 0:03:02.4]}
12... a6 {[%clk 0:02:42.9]} 13. a4 {[%clk 0:03:02.3]} 13... Re8 {[%clk
0:02:41.7]} 14. Re1 {[%clk 0:03:01.1]} 14... Qc7 {[%clk 0:02:37.6]} 15. Bd2
{[%clk 0:02:21.9]} 15... c4 {[%clk 0:02:36.1]} 16. Bc2 {[%clk 0:02:16.7]} 16...
Qb6+ {[%clk 0:02:34.4]} 17. Qf2 {[%clk 0:01:32.2]} 17... Qxb2 {[%clk 0:02:33.3]}
18. Ra2 {[%clk 0:01:32.5]} 18... Qb6 {[%clk 0:02:29.6]} 19. Qxb6 {[%clk
0:01:32.9]} 19... Nxb6 {[%clk 0:02:28.6]} 20. Rb2 {[%clk 0:01:33.5]} 20... Nbd7
{[%clk 0:02:20.2]} 21. Rxb7 {[%clk 0:01:33.8]} 21... Reb8 {[%clk 0:02:17.1]} 22.
Reb1 {[%clk 0:01:32.7]} 22... Rxb7 {[%clk 0:02:15.4]} 23. Rxb7 {[%clk
0:01:33.3]} 23... Nc5 {[%clk 0:02:15.3]} 24. Rb6 {[%clk 0:01:27.5]} 24... Ne8
{[%clk 0:02:12.8]} 25. Be3 {[%clk 0:01:18.2]} 25... Bxc3 {[%clk 0:02:09.9]} 26.
e5 {[%clk 0:01:11]} 26... Nd3 {[%clk 0:01:53.5]} 27. exd6 {[%clk 0:01:03.3]}
27... Rd8 {[%clk 0:01:51.8]} 28. Rc6 {[%clk 0:00:33.4]} 28... Nxd6 {[%clk
0:01:49.9]} 29. Bxd3 {[%clk 0:00:32]} 29... cxd3 {[%clk 0:01:47.9]} 30. Rxc3
{[%clk 0:00:32.7]} 30... d2 {[%clk 0:01:40.6]} 31. Bxd2 {[%clk 0:00:32.2]} 31...
Ne4 {[%clk 0:01:40.7]} 32. Rd3 {[%clk 0:00:33.2]} 32... Kf8 {[%clk 0:01:39.3]}
33. Rd4 {[%clk 0:00:32.7]} 33... Nd6 {[%clk 0:01:36.4]} 34. Bb4 {[%clk
0:00:33.2]} 34... Ke7 {[%clk 0:01:36.5]} 35. Kf2 {[%clk 0:00:31.6]} 35... Rb8
{[%clk 0:01:35.4]} 36. Ke3 {[%clk 0:00:26.1]} 36... Kd7 {[%clk 0:01:34.3]} 37.
Bxd6 {[%clk 0:00:25.9]} 37... Kxd6 {[%clk 0:01:33.8]} 38. Ke4 {[%clk 0:00:21.4]}
38... Rb3 {[%clk 0:01:31.7]} 39. f5 {[%clk 0:00:17.3]} 39... a5 {[%clk
0:01:22.4]} 40. fxg6 {[%clk 0:00:13.7]} 40... hxg6 {[%clk 0:01:20.3]} 41. Kf4
{[%clk 0:00:13.9]} 41... f6 {[%clk 0:01:16.1]} 42. h4 {[%clk 0:00:11.2]} 42...
Kc5 {[%clk 0:01:14.4]} 43. Rd1 {[%clk 0:00:05.8]} 43... Rb4+ {[%clk 0:01:12.6]}
44. Kf3 {[%clk 0:00:06.9]} 44... Kd6 {[%clk 0:01:11.7]} 45. g4 {[%clk 0:00:07]}
45... Rxa4 {[%clk 0:01:10.8]} 46. Kg3 {[%clk 0:00:07.9]} 46... Rb4 {[%clk
0:01:08.5]} 47. h5 {[%clk 0:00:08.8]} 47... g5 {[%clk 0:01:06]} 48. h6 {[%clk
0:00:08.8]} 48... Rb7 {[%clk 0:01:05.7]} 49. Rf1 {[%clk 0:00:09.4]} 49... Kxd5
{[%clk 0:01:04.4]} 50. Rxf6 {[%clk 0:00:09.9]} 50... Ra7 {[%clk 0:01:04.3]} 51.
Rg6 {[%clk 0:00:09.1]} 51... Ke5 {[%clk 0:00:49.8]} 52. Rxg5+ {[%clk 0:00:10]}
52... Ke4 {[%clk 0:00:50.1]} 53. Rh5 {[%clk 0:00:10.8]} 53... Rh7 {[%clk
0:00:49.2]} 54. Rxa5 {[%clk 0:00:08.9]} 54... Rxh6 {[%clk 0:00:47.5]} 55. g5
{[%clk 0:00:10.2]} 55... Rh1 {[%clk 0:00:47.2]} 56. Kg4 {[%clk 0:00:10.8]} 56...
Rg1+ {[%clk 0:00:47.2]} 57. Kh5 {[%clk 0:00:11.9]} 57... Rh1+ {[%clk 0:00:46.9]}
58. Kg6 {[%clk 0:00:13.1]} 58... Kf4 {[%clk 0:00:46]} 59. Kf6 {[%clk 0:00:13.1]}
59... Rb1 {[%clk 0:00:43.9]} 60. g6 {[%clk 0:00:13.4]} 60... Rb6+ {[%clk
0:00:43.4]} 61. Kg7 {[%clk 0:00:14.6]} 61... Rb7+ {[%clk 0:00:43.6]} 62. Kh8
{[%clk 0:00:15.8]} 62... Rb8+ {[%clk 0:00:43.9]} 63. Kh7 {[%clk 0:00:17.1]}
63... Rb2 {[%clk 0:00:43.2]} 64. g7 {[%clk 0:00:18.1]} 64... Rh2+ {[%clk
0:00:43]} 65. Kg6 {[%clk 0:00:12.4]} 65... Rf2 {[%clk 0:00:42.4]} 66. g8=Q
{[%clk 0:00:12.4]} 66... Rg2+ {[%clk 0:00:41.7]} 67. Kf7 {[%clk 0:00:13.5]}
67... Rf2 {[%clk 0:00:39.7]} 68. Qb8+ {[%clk 0:00:10.2]} 68... Ke4+ {[%clk
0:00:37.9]} 69. Ke7 {[%clk 0:00:08.5]} 69... Re2 {[%clk 0:00:38.2]} 70. Re5+
{[%clk 0:00:08.4]} 70... Kf3 {[%clk 0:00:36.3]} 71. Rxe2 {[%clk 0:00:10]} 71...
Kxe2 {[%clk 0:00:36.1]} 72. Qb3 {[%clk 0:00:11.5]} 72... Kd2 {[%clk 0:00:36.1]}
73. Ke6 {[%clk 0:00:12.3]} 73... Ke2 {[%clk 0:00:36.5]} 74. Qc3 {[%clk
0:00:13.6]} 74... Kf2 {[%clk 0:00:36.5]} 75. Qd3 {[%clk 0:00:14.9]} 75... Kg2
{[%clk 0:00:36.9]} 76. Qe3 {[%clk 0:00:16.1]} 76... Kh2 {[%clk 0:00:37.2]} 77.
Qf3 {[%clk 0:00:16]} 77... Kg1 {[%clk 0:00:37.3]} 78. Qe2 {[%clk 0:00:17.6]}
78... Kh1 {[%clk 0:00:37.4]} 79. Kf5 {[%clk 0:00:19.2]} 79... Kg1 {[%clk
0:00:37.5]} 80. Kf4 {[%clk 0:00:20.9]} 80... Kh1 {[%clk 0:00:37.8]} 81. Kf3
{[%clk 0:00:22.6]} 1

[Event "Torneo Nuevo Centro. Jornada 11"]
[Site "Chess.com"]
[Date "2020.08.28"]
[Round "7"]
[White "Pedros Viudes, Santiago"]
[Black "Miranda Calvo, Max Rodrigo"]
[Result "1-0"]
[WhiteElo "1895"]
[BlackElo "1299"]
[TimeControl "180+2"]
[EndTime "11:38:16 PDT"]
[Termination "Victoria de ElGatoKamsky por abandono"]

1. d4 {[%clk 0:03:01.9]} 1... d5 {[%clk 0:02:59]} 2. Nf3 {[%clk 0:03:02.6]} 2...
e6 {[%clk 0:02:52.6]} 3. Bf4 {[%clk 0:03:02.8]} 3... Bd6 {[%clk 0:02:48.6]} 4.
Bg3 {[%clk 0:03:02.5]} 4... Bxg3 {[%clk 0:02:48.2]} 5. hxg3 {[%clk 0:03:04.4]}
5... Ne7 {[%clk 0:02:46.4]} 6. e3 {[%clk 0:03:04.7]} 6... c6 {[%clk 0:02:46.1]}
7. Bd3 {[%clk 0:03:05.3]} 7... f5 {[%clk 0:02:46]} 8. g4 {[%clk 0:02:59.5]} 8...
O-O {[%clk 0:02:45.6]} 9. gxf5 {[%clk 0:02:58.2]} 9... Nxf5 {[%clk 0:02:47.5]}
10. g4 {[%clk 0:02:58.9]} 10... Ne7 {[%clk 0:02:43.4]} 11. Bxh7+ {[%clk
0:02:58.4]} 11... Kf7 {[%clk 0:02:41.8]} 12. Ne5+ {[%clk 0:02:58.1]} 12... Ke8
{[%clk 0:02:42.2]} 13. g5 {[%clk 0:02:57.3]} 13... Nd7 {[%clk 0:02:39.9]} 14.
Qh5+ {[%clk 0:02:35.4]} 14... g6 {[%clk 0:02:38.3]} 15. Bxg6+ {[%clk 0:02:34.6]}
15... Nxg6 {[%clk 0:02:39.1]} 16. Qxg6+ {[%clk 0:02:35.9]} 16... Ke7 {[%clk
0:02:39.2]} 17. Rh7+ {[%clk 0:02:19.8]} 17... Kd6 {[%clk 0:02:40]} 18. Nf7+
{[%clk 0:02:21]} 18... Rxf7 {[%clk 0:02:40]} 19. Rxf7 {[%clk 0:02:21.8]} 1

[Event "Torneo Nuevo Centro. Jornada 11"]
[Site "Chess.com"]
[Date "2020.08.28"]
[Round "7"]
[White "Hernández Tomás, Efrén"]
[Black "Beneyto de Ramon, Guillermo"]
[Result "0-1"]
[WhiteElo "1127"]
[BlackElo "1652"]
[TimeControl "180+2"]
[EndTime "11:38:34 PDT"]
[Termination "Victoria de GUILLETE por abandono"]

1. e4 {[%clk 0:03:01.9]} 1... Nf6 {[%clk 0:02:58.7]} 2. e5 {[%clk 0:03:01.8]}
2... Nd5 {[%clk 0:02:59.8]} 3. Qf3 {[%clk 0:03:01.8]} 3... e6 {[%clk 0:02:53]}
4. Bc4 {[%clk 0:02:57.1]} 4... Nb6 {[%clk 0:02:53.7]} 5. Bd3 {[%clk 0:02:54.9]}
5... Nc6 {[%clk 0:02:53.4]} 6. Nc3 {[%clk 0:02:55.2]} 6... Nxe5 {[%clk
0:02:49.3]} 7. Qf4 {[%clk 0:02:52.4]} 7... Nxd3+ {[%clk 0:02:50]} 8. cxd3 {[%clk
0:02:51.9]} 8... Bd6 {[%clk 0:02:50.7]} 9. Qg4 {[%clk 0:02:48.2]} 9... O-O
{[%clk 0:02:50.6]} 10. d4 {[%clk 0:02:44.9]} 10... Qf6 {[%clk 0:02:49.1]} 11. d3
{[%clk 0:02:43.2]} 11... c5 {[%clk 0:02:42.4]} 12. dxc5 {[%clk 0:02:41]} 12...
Bxc5 {[%clk 0:02:44.3]} 13. Bg5 {[%clk 0:02:39.8]} 13... Qxf2+ {[%clk
0:02:41.4]} 14. Kd1 {[%clk 0:02:38]} 14... d5 {[%clk 0:02:22.3]} 15. Bh6 {[%clk
0:02:35.3]} 15... Qf6 {[%clk 0:02:16.7]} 16. Bg5 {[%clk 0:02:33.1]} 16... Qg6
{[%clk 0:02:14.4]} 17. Nf3 {[%clk 0:02:32.6]} 17... e5 {[%clk 0:02:15.4]} 18.
Nxe5 {[%clk 0:02:32]} 18... Bxg4+ {[%clk 0:02:14.9]} 19. Nxg4 {[%clk 0:02:31.9]}
19... Qxg5 {[%clk 0:02:15.5]} 0

[Event "Torneo Nuevo Centro. Jornada 11"]
[Site "Chess.com"]
[Date "2020.08.28"]
[Round "7"]
[White "Más Ripoll, Vicente"]
[Black "Fitzpatrick Dimas, Kevin"]
[Result "1-0"]
[WhiteElo "1075"]
[BlackElo "834"]
[TimeControl "180+2"]
[EndTime "11:38:59 PDT"]
[Termination "Victoria de menut por abandono"]

1. e4 {[%clk 0:03:01.9]} 1... e5 {[%clk 0:02:59.4]} 2. Nf3 {[%clk 0:03:01.8]}
2... Bc5 {[%clk 0:02:58]} 3. Bc4 {[%clk 0:02:54.9]} 3... Nc6 {[%clk 0:02:52.7]}
4. d3 {[%clk 0:02:52.6]} 4... Nf6 {[%clk 0:02:53]} 5. a3 {[%clk 0:02:52.8]} 5...
d6 {[%clk 0:02:53.2]} 6. b4 {[%clk 0:02:53.4]} 6... Bb6 {[%clk 0:02:47.8]} 7. h3
{[%clk 0:02:52.7]} 7... O-O {[%clk 0:02:34.1]} 8. Bg5 {[%clk 0:02:52.2]} 8... h6
{[%clk 0:02:33.2]} 9. Bh4 {[%clk 0:02:52.1]} 9... Re8 {[%clk 0:02:34]} 10. Nc3
{[%clk 0:02:45.2]} 10... Be6 {[%clk 0:02:32]} 11. Bxe6 {[%clk 0:02:30.5]} 11...
Rxe6 {[%clk 0:02:31]} 12. Nh2 {[%clk 0:02:29.8]} 12... Nd4 {[%clk 0:02:21.2]}
13. Ng4 {[%clk 0:02:19.2]} 13... Qf8 {[%clk 0:02:15.2]} 14. Nxf6+ {[%clk
0:02:09.4]} 14... gxf6 {[%clk 0:02:14.3]} 15. Nd5 {[%clk 0:02:06.3]} 15... Kg7
{[%clk 0:02:11]} 16. Qg4+ {[%clk 0:01:54.6]} 1

[Event "Torneo Nuevo Centro. Jornada 11"]
[Site "Chess.com"]
[Date "2020.08.28"]
[Round "7"]
[White "Perez Garcia, Jose Miguel"]
[Black "Martínez Escandell, Alfonso"]
[Result "1-0"]
[WhiteElo "2035"]
[BlackElo "1905"]
[TimeControl "180+2"]
[EndTime "11:39:26 PDT"]
[Termination "Victoria de PEREZOV69 por jaque mate"]

1. e4 {[%clk 0:02:56]} 1... c5 {[%clk 0:03:01.9]} 2. Nf3 {[%clk 0:02:51.3]} 2...
e6 {[%clk 0:02:50.3]} 3. d4 {[%clk 0:02:38.6]} 3... cxd4 {[%clk 0:02:47.1]} 4.
Nxd4 {[%clk 0:02:40.5]} 4... Bc5 {[%clk 0:02:45.2]} 5. Nb5 {[%clk 0:02:31.4]}
5... Nf6 {[%clk 0:02:41]} 6. Nd6+ {[%clk 0:02:27.7]} 6... Bxd6 {[%clk
0:02:41.5]} 7. Qxd6 {[%clk 0:02:29.6]} 7... Nxe4 {[%clk 0:02:34]} 8. Qd4 {[%clk
0:02:28.6]} 8... Nf6 {[%clk 0:02:29.6]} 9. Bg5 {[%clk 0:02:28.7]} 9... Nc6
{[%clk 0:02:30.2]} 10. Qh4 {[%clk 0:02:25]} 10... h6 {[%clk 0:02:28.1]} 11. Nc3
{[%clk 0:02:24.7]} 11... O-O {[%clk 0:02:28.7]} 12. Bxh6 {[%clk 0:02:24.4]}
12... gxh6 {[%clk 0:02:28.5]} 13. Qxh6 {[%clk 0:02:26.3]} 13... Nh7 {[%clk
0:02:23.4]} 14. Bd3 {[%clk 0:02:25.8]} 14... f5 {[%clk 0:02:23.1]} 15. h4 {[%clk
0:02:25.4]} 15... Ne5 {[%clk 0:02:22.3]} 16. O-O-O {[%clk 0:02:23.6]} 16...
Nxd3+ {[%clk 0:02:22.3]} 17. Rxd3 {[%clk 0:02:25.5]} 17... Qf6 {[%clk
0:02:21.9]} 18. Rg3+ {[%clk 0:02:24.6]} 18... Kh8 {[%clk 0:02:19]} 19. Rg6
{[%clk 0:02:25.5]} 19... Qf7 {[%clk 0:02:03.7]} 20. h5 {[%clk 0:02:23.4]} 20...
Qe8 {[%clk 0:01:34.9]} 21. Qg7# {[%clk 0:02:23.9]} 1

[Event "Torneo Nuevo Centro. Jornada 11"]
[Site "Chess.com"]
[Date "2020.08.28"]
[Round "7"]
[White "Grigorev, Artur "]
[Black "Alvarez Usina, Joan"]
[Result "1-0"]
[WhiteElo "917"]
[BlackElo "356"]
[TimeControl "180+2"]
[EndTime "11:39:53 PDT"]
[Termination "Victoria de Arturiog por jaque mate"]

1. e4 {[%clk 0:03:01.9]} 1... e5 {[%clk 0:03:00.1]} 2. Nf3 {[%clk 0:03:02.3]}
2... Nc6 {[%clk 0:02:58.8]} 3. Bc4 {[%clk 0:03:01.6]} 3... Nf6 {[%clk
0:02:58.7]} 4. Nc3 {[%clk 0:03:00.5]} 4... d6 {[%clk 0:02:55.5]} 5. Ng5 {[%clk
0:03:00.5]} 5... Be6 {[%clk 0:02:54.9]} 6. Bxe6 {[%clk 0:02:52]} 6... fxe6
{[%clk 0:02:54]} 7. Nxe6 {[%clk 0:02:52.9]} 7... Qe7 {[%clk 0:02:52.7]} 8. Nxf8
{[%clk 0:02:53.5]} 8... Rxf8 {[%clk 0:02:51.2]} 9. O-O {[%clk 0:02:53.9]} 9...
Nh5 {[%clk 0:02:50.4]} 10. Qxh5+ {[%clk 0:02:52.2]} 10... g6 {[%clk 0:02:46.1]}
11. Qh3 {[%clk 0:02:47.5]} 11... Nd4 {[%clk 0:02:45.5]} 12. d3 {[%clk
0:02:45.2]} 12... Nxc2 {[%clk 0:02:45.3]} 13. Rb1 {[%clk 0:02:44]} 13... Nd4
{[%clk 0:02:43.9]} 14. Be3 {[%clk 0:02:36.5]} 14... Ne6 {[%clk 0:02:40.9]} 15.
Rbd1 {[%clk 0:02:32.9]} 15... c6 {[%clk 0:02:23.2]} 16. d4 {[%clk 0:02:22.2]}
16... exd4 {[%clk 0:02:22.3]} 17. Bxd4 {[%clk 0:02:17.3]} 17... Nxd4 {[%clk
0:02:17.8]} 18. Rxd4 {[%clk 0:02:17]} 18... c5 {[%clk 0:02:17.5]} 19. Rdd1
{[%clk 0:02:11.1]} 19... Qd7 {[%clk 0:02:06.4]} 20. Nd5 {[%clk 0:02:10.2]} 20...
Qd8 {[%clk 0:01:51.7]} 21. Qe6+ {[%clk 0:01:58.1]} 21... Qe7 {[%clk 0:01:40.5]}
22. Qxe7# {[%clk 0:01:58.6]} 1

[Event "Torneo Nuevo Centro. Jornada 11"]
[Site "Chess.com"]
[Date "2020.08.28"]
[Round "7"]
[White "Chofre Murcia, Adrián"]
[Black "Sampedro Roig, Josep Francesc"]
[Result "0-1"]
[WhiteElo "1628"]
[BlackElo "1845"]
[TimeControl "180+2"]
[EndTime "11:40:12 PDT"]
[Termination "Victoria de Abrekurios por abandono"]

1. e4 {[%clk 0:03:01.9]} 1... Nf6 {[%clk 0:03:01.9]} 2. Nc3 {[%clk 0:03:02.6]}
2... d5 {[%clk 0:03:02.5]} 3. e5 {[%clk 0:03:02]} 3... Nfd7 {[%clk 0:03:03.1]}
4. d4 {[%clk 0:03:02.5]} 4... c5 {[%clk 0:03:03.6]} 5. Nf3 {[%clk 0:03:02.2]}
5... e6 {[%clk 0:03:03.7]} 6. Bb5 {[%clk 0:02:59.7]} 6... Nc6 {[%clk 0:03:04.2]}
7. Bg5 {[%clk 0:02:53.1]} 7... Qb6 {[%clk 0:03:00]} 8. Bxc6 {[%clk 0:02:44.2]}
8... bxc6 {[%clk 0:03:00.3]} 9. b3 {[%clk 0:02:44.6]} 9... cxd4 {[%clk 0:02:54]}
10. Qxd4 {[%clk 0:02:42.7]} 10... Bc5 {[%clk 0:02:50.5]} 11. Qd2 {[%clk
0:02:39.5]} 11... Bb4 {[%clk 0:02:26]} 12. O-O {[%clk 0:02:34.9]} 12... Qc5
{[%clk 0:02:22.3]} 13. Na4 {[%clk 0:02:14.2]} 13... Bxd2 {[%clk 0:02:22.7]} 14.
Nxc5 {[%clk 0:02:14.5]} 14... Bxg5 {[%clk 0:02:22.9]} 15. Nxd7 {[%clk
0:02:10.9]} 15... Be7 {[%clk 0:02:23.3]} 16. c4 {[%clk 0:01:47.2]} 16... Bxd7
{[%clk 0:02:21.9]} 17. cxd5 {[%clk 0:01:47.2]} 17... cxd5 {[%clk 0:02:11.1]} 18.
Rac1 {[%clk 0:01:47.4]} 18... Rc8 {[%clk 0:02:11.5]} 19. Rxc8+ {[%clk 0:01:48]}
19... Bxc8 {[%clk 0:02:12.4]} 20. Rc1 {[%clk 0:01:48.9]} 20... Kd7 {[%clk
0:02:13.2]} 21. h3 {[%clk 0:01:45.2]} 21... Ba6 {[%clk 0:02:09.2]} 22. Rc3
{[%clk 0:01:39.7]} 22... Rc8 {[%clk 0:02:07.9]} 23. Re3 {[%clk 0:01:39.4]} 23...
Rc1+ {[%clk 0:02:02.6]} 24. Kh2 {[%clk 0:01:39.8]} 24... h6 {[%clk 0:02:01.7]}
25. Nd4 {[%clk 0:01:39.8]} 25... Bc5 {[%clk 0:01:57.8]} 26. b4 {[%clk
0:01:40.5]} 26... Bxd4 {[%clk 0:01:58.1]} 0

[Event "Torneo Nuevo Centro. Jornada 11"]
[Site "Chess.com"]
[Date "2020.08.28"]
[Round "7"]
[White "Méndez Giménez , Néstor Emmanuel"]
[Black "Gukasov, Artem"]
[Result "0-1"]
[WhiteElo "1236"]
[BlackElo "1445"]
[TimeControl "180+2"]
[EndTime "11:40:40 PDT"]
[Termination "Victoria de ArtemGukasov por jaque mate"]

1. e4 {[%clk 0:03:01.9]} 1... e6 {[%clk 0:02:59.6]} 2. d4 {[%clk 0:03:02.4]}
2... d5 {[%clk 0:02:50.4]} 3. e5 {[%clk 0:03:02.7]} 3... c5 {[%clk 0:02:48.2]}
4. c3 {[%clk 0:03:02.3]} 4... Nc6 {[%clk 0:02:47.5]} 5. Nf3 {[%clk 0:03:01.4]}
5... Qb6 {[%clk 0:02:48.6]} 6. Bd3 {[%clk 0:02:59.9]} 6... Nge7 {[%clk
0:02:46.5]} 7. O-O {[%clk 0:02:58.6]} 7... Ng6 {[%clk 0:02:46.5]} 8. b4 {[%clk
0:02:53.1]} 8... cxb4 {[%clk 0:02:46.7]} 9. cxb4 {[%clk 0:02:53.9]} 9... Bxb4
{[%clk 0:02:47.2]} 10. Ba3 {[%clk 0:02:48.2]} 10... Bxa3 {[%clk 0:02:44.1]} 11.
Nxa3 {[%clk 0:02:48.9]} 11... O-O {[%clk 0:02:44.4]} 12. Rb1 {[%clk 0:02:47.7]}
12... Qa5 {[%clk 0:02:41.6]} 13. Bxg6 {[%clk 0:02:46.3]} 13... hxg6 {[%clk
0:02:35.9]} 14. Nc2 {[%clk 0:02:46]} 14... Qxa2 {[%clk 0:02:32.6]} 15. Ra1
{[%clk 0:02:43.7]} 15... Qc4 {[%clk 0:02:31.6]} 16. Na3 {[%clk 0:02:43.2]} 16...
Qa6 {[%clk 0:02:29.2]} 17. Qd3 {[%clk 0:02:40]} 17... Qxd3 {[%clk 0:02:28.9]}
18. Rfd1 {[%clk 0:02:35.5]} 18... Qf5 {[%clk 0:01:40]} 19. Nh4 {[%clk
0:02:34.8]} 19... Qg5 {[%clk 0:01:40.9]} 20. g3 {[%clk 0:02:34.2]} 20... a5
{[%clk 0:01:41.2]} 21. Nb5 {[%clk 0:02:34.2]} 21... Bd7 {[%clk 0:01:29.4]} 22.
Nc7 {[%clk 0:02:32.3]} 22... Rac8 {[%clk 0:01:27.8]} 23. Nb5 {[%clk 0:02:31.6]}
23... b6 {[%clk 0:01:27.6]} 24. Nd6 {[%clk 0:02:31.6]} 24... Rc7 {[%clk
0:01:27.6]} 25. Rab1 {[%clk 0:02:30.5]} 25... Nb4 {[%clk 0:01:27.4]} 26. Rdc1
{[%clk 0:02:28.2]} 26... Rxc1+ {[%clk 0:01:27.8]} 27. Rxc1 {[%clk 0:02:27]}
27... Qxc1+ {[%clk 0:01:28.8]} 28. Kg2 {[%clk 0:02:26.4]} 28... Qd2 {[%clk
0:01:28.1]} 29. Nf3 {[%clk 0:02:24.1]} 29... Qc2 {[%clk 0:01:27.3]} 30. h4
{[%clk 0:02:21.1]} 30... Nd3 {[%clk 0:01:27.4]} 31. Kh3 {[%clk 0:02:15.6]} 31...
Nxf2+ {[%clk 0:01:28]} 32. Kg2 {[%clk 0:02:15.6]} 32... Ne4+ {[%clk 0:01:27.6]}
33. Kf1 {[%clk 0:02:15.2]} 33... Qf2# {[%clk 0:01:27.2]} 0

[Event "Torneo Nuevo Centro. Jornada 11"]
[Site "Chess.com"]
[Date "2020.08.28"]
[Round "7"]
[White "Zamora Soler, Raul"]
[Black "Rabbani Perez, Oumaima "]
[Result "1-0"]
[WhiteElo "1858"]
[BlackElo "724"]
[TimeControl "180+2"]
[EndTime "11:41:05 PDT"]
[Termination "Victoria de rzamora80 por jaque mate"]

1. e4 {[%clk 0:03:01.9]} 1... e6 {[%clk 0:02:58.1]} 2. d4 {[%clk 0:03:02.4]}
2... Bb4+ {[%clk 0:02:48.5]} 3. c3 {[%clk 0:03:01.6]} 3... Be7 {[%clk
0:02:45.6]} 4. Bd3 {[%clk 0:03:00.2]} 4... d5 {[%clk 0:02:44.1]} 5. e5 {[%clk
0:02:59.4]} 5... Bh4 {[%clk 0:02:36.9]} 6. Nf3 {[%clk 0:02:56.3]} 6... Bxf2+
{[%clk 0:02:26.5]} 7. Kxf2 {[%clk 0:02:51.4]} 7... Nf6 {[%clk 0:02:23.8]} 8. h3
{[%clk 0:02:47]} 8... Nh5 {[%clk 0:02:21.3]} 9. g4 {[%clk 0:02:45.2]} 9... Nf4
{[%clk 0:02:20.4]} 10. Bxf4 {[%clk 0:02:45.7]} 10... Bd7 {[%clk 0:02:11.6]} 11.
Rf1 {[%clk 0:02:44]} 11... Nc6 {[%clk 0:02:09.7]} 12. Bg5 {[%clk 0:02:44.4]}
12... Nxd4 {[%clk 0:02:09.3]} 13. Bxd8 {[%clk 0:02:37.4]} 13... Rxd8 {[%clk
0:02:08.1]} 14. cxd4 {[%clk 0:02:37.1]} 14... Bb5 {[%clk 0:01:57.2]} 15. Bxb5+
{[%clk 0:02:32.6]} 15... c6 {[%clk 0:01:52.7]} 16. Bd3 {[%clk 0:02:31.5]} 16...
b5 {[%clk 0:01:50.4]} 17. a4 {[%clk 0:02:29.1]} 17... b4 {[%clk 0:01:47.9]} 18.
Qb3 {[%clk 0:02:28.1]} 18... Rb8 {[%clk 0:01:45.8]} 19. a5 {[%clk 0:02:28.3]}
19... h6 {[%clk 0:01:39.5]} 20. a6 {[%clk 0:02:25.5]} 20... O-O {[%clk
0:01:37.6]} 21. Ra5 {[%clk 0:02:17.2]} 21... Rfc8 {[%clk 0:01:22.3]} 22. Rc1
{[%clk 0:02:17.7]} 22... c5 {[%clk 0:01:20.9]} 23. Raxc5 {[%clk 0:02:17.9]}
23... Rf8 {[%clk 0:01:17.9]} 24. Rc7 {[%clk 0:02:15.8]} 24... f5 {[%clk
0:01:11.8]} 25. exf6 {[%clk 0:02:16.1]} 25... gxf6 {[%clk 0:01:08.1]} 26. Kg3
{[%clk 0:02:13.2]} 26... f5 {[%clk 0:01:06.3]} 27. gxf5 {[%clk 0:02:11.9]} 27...
exf5 {[%clk 0:01:05.5]} 28. Qxd5+ {[%clk 0:02:12.1]} 28... Kh8 {[%clk
0:00:57.8]} 29. Qe5+ {[%clk 0:02:12.4]} 29... Kg8 {[%clk 0:00:51.7]} 30. Qg7#
{[%clk 0:02:12.7]} 1